Workbook

Sheet Ark1
C2: =Makro!D20 -> 0 | K2: Søjlelaste | R2: Betonelement-Foreningen feb 2019
B3: Sag: | C3: Betonelementhuset | H3: Nr.: | I3: 23 - 4545 | K3: =IF(LEN(Makro!E25)>0,Makro!E25,"") -> For ny bruger: Klik på knappen 'angiv nyt brugernavn' for ibrugtagning.
B4: Emne: | C4: Søjle i B/6, stue. - 6. sal (STR 6.10b) | H4: Init: | I4: JFJ
K6: Resulterende lasttilfælde, lodrette lastandele | P6: N1 (kN) | Q6: N0 (kN) | R6: N2 (kN)
K7: Hovedtilfælde I - a : | M7: A: Min N1 + min N0 + min N2 | P7: =IF(Makro!E20=1,"-",'Ark2'!M2) -> - | Q7: =IF(Makro!E20=1,"-",'Ark2'!N2) -> - | R7: =IF(Makro!E20=1,"-",'Ark2'!O2) -> - | T7: Vejledning:
M8: B: Reduc N1 + min N0 + min N2 | P8: =IF(Makro!E20=1,"-",'Ark2'!M3) -> - | Q8: =IF(Makro!E20=1,"-",'Ark2'!N3) -> - | R8: =IF(Makro!E20=1,"-",'Ark2'!O3) -> - | T8: Inddata vedrørende lodrette last kan overføres fra modulet "lodret lastnedføring". Under resulterende lasttilfælde svarer hovedtilfælde I - a og I - b til udknækning på tværs af bjælken; medens II - a og II - b svarer til udknækning på langs med bjælken. For hvert hovedtilfælde skal lasttilfælde A, B, C og D kombineres med maksimal tværlast. Lasttilfælde E, F, G, H og I skal kombineres med reduc. tværlast ved eftervisning af søjlens bæreevne.
M9: C: Reduc N1 + reduc N0 + min N2 | P9: =IF(Makro!E20=1,"-",'Ark2'!M4) -> - | Q9: =IF(Makro!E20=1,"-",'Ark2'!N4) -> - | R9: =IF(Makro!E20=1,"-",'Ark2'!O4) -> -
M10: D: Reduc N1 + reduc N0 + reduc N2 | P10: =IF(Makro!E20=1,"-",'Ark2'!M5) -> - | Q10: =IF(Makro!E20=1,"-",'Ark2'!N5) -> - | R10: =IF(Makro!E20=1,"-",'Ark2'!O5) -> -
M11: E: Max N1 + min N0 + min N2 | P11: =IF(Makro!E20=1,"-",'Ark2'!M6) -> - | Q11: =IF(Makro!E20=1,"-",'Ark2'!N6) -> - | R11: =IF(Makro!E20=1,"-",'Ark2'!O6) -> -
M12: F: Max N1 + reduc N0 + min N2 | P12: =IF(Makro!E20=1,"-",'Ark2'!M7) -> - | Q12: =IF(Makro!E20=1,"-",'Ark2'!N7) -> - | R12: =IF(Makro!E20=1,"-",'Ark2'!O7) -> -
M13: G: Max N1 + reduc N0 + max N2 | P13: =IF(Makro!E20=1,"-",'Ark2'!M8) -> - | Q13: =IF(Makro!E20=1,"-",'Ark2'!N8) -> - | R13: =IF(Makro!E20=1,"-",'Ark2'!O8) -> -
M14: H: Max N1 + max N0 + min N2 | P14: =IF(Makro!E20=1,"-",'Ark2'!M9) -> - | Q14: =IF(Makro!E20=1,"-",'Ark2'!N9) -> - | R14: =IF(Makro!E20=1,"-",'Ark2'!O9) -> -
M15: I : Max N1 + max N0 + max N2 | P15: =IF(Makro!E20=1,"-",'Ark2'!M10) -> - | Q15: =IF(Makro!E20=1,"-",'Ark2'!N10) -> - | R15: =IF(Makro!E20=1,"-",'Ark2'!O10) -> -
K16: Hovedtilfælde I - b : | M16: A: Min N1 + min N0 + min N2 | P16: =IF(Makro!E20=1,"-",'Ark2'!M11) -> - | Q16: =IF(Makro!E20=1,"-",'Ark2'!N11) -> - | R16: =IF(Makro!E20=1,"-",'Ark2'!O11) -> -
M17: B: Reduc N1 + min N0 + min N2 | P17: =IF(Makro!E20=1,"-",'Ark2'!M12) -> - | Q17: =IF(Makro!E20=1,"-",'Ark2'!N12) -> - | R17: =IF(Makro!E20=1,"-",'Ark2'!O12) -> -
M18: C: Reduc N1 + reduc N0 + min N2 | P18: =IF(Makro!E20=1,"-",'Ark2'!M13) -> - | Q18: =IF(Makro!E20=1,"-",'Ark2'!N13) -> - | R18: =IF(Makro!E20=1,"-",'Ark2'!O13) -> -
M19: D: Reduc N1 + reduc N0 + reduc N2 | P19: =IF(Makro!E20=1,"-",'Ark2'!M14) -> - | Q19: =IF(Makro!E20=1,"-",'Ark2'!N14) -> - | R19: =IF(Makro!E20=1,"-",'Ark2'!O14) -> -
M20: E: Max N1 + min N0 + min N2 | P20: =IF(Makro!E20=1,"-",'Ark2'!M15) -> - | Q20: =IF(Makro!E20=1,"-",'Ark2'!N15) -> - | R20: =IF(Makro!E20=1,"-",'Ark2'!O15) -> -
M21: F: Max N1 + reduc N0 + min N2 | P21: =IF(Makro!E20=1,"-",'Ark2'!M16) -> - | Q21: =IF(Makro!E20=1,"-",'Ark2'!N16) -> - | R21: =IF(Makro!E20=1,"-",'Ark2'!O16) -> -
M22: G: Max N1 + reduc N0 + max N2 | P22: =IF(Makro!E20=1,"-",'Ark2'!M17) -> - | Q22: =IF(Makro!E20=1,"-",'Ark2'!N17) -> - | R22: =IF(Makro!E20=1,"-",'Ark2'!O17) -> -
M23: H: Max N1 + max N0 + min N2 | P23: =IF(Makro!E20=1,"-",'Ark2'!M18) -> - | Q23: =IF(Makro!E20=1,"-",'Ark2'!N18) -> - | R23: =IF(Makro!E20=1,"-",'Ark2'!O18) -> -
M24: I : Max N1 + max N0 + max N2 | P24: =IF(Makro!E20=1,"-",'Ark2'!M19) -> - | Q24: =IF(Makro!E20=1,"-",'Ark2'!N19) -> - | R24: =IF(Makro!E20=1,"-",'Ark2'!O19) -> -
K25: Hovedtilfælde II - a : | M25: A: Min N1 + min N0 + min N2 | P25: =IF(Makro!E20=1,"-",'Ark2'!M20) -> - | Q25: =IF(Makro!E20=1,"-",'Ark2'!N20) -> - | R25: =IF(Makro!E20=1,"-",'Ark2'!O20) -> -
M26: B: Reduc N1 + min N0 + min N2 | P26: =IF(Makro!E20=1,"-",'Ark2'!M21) -> - | Q26: =IF(Makro!E20=1,"-",'Ark2'!N21) -> - | R26: =IF(Makro!E20=1,"-",'Ark2'!O21) -> -
M27: C: Reduc N1 + reduc N0 + min N2 | P27: =IF(Makro!E20=1,"-",'Ark2'!M22) -> - | Q27: =IF(Makro!E20=1,"-",'Ark2'!N22) -> - | R27: =IF(Makro!E20=1,"-",'Ark2'!O22) -> -
M28: D: Reduc N1 + reduc N0 + reduc N2 | P28: =IF(Makro!E20=1,"-",'Ark2'!M23) -> - | Q28: =IF(Makro!E20=1,"-",'Ark2'!N23) -> - | R28: =IF(Makro!E20=1,"-",'Ark2'!O23) -> -
M29: E: Max N1 + min N0 + min N2 | P29: =IF(Makro!E20=1,"-",'Ark2'!M24) -> - | Q29: =IF(Makro!E20=1,"-",'Ark2'!N24) -> - | R29: =IF(Makro!E20=1,"-",'Ark2'!O24) -> -
M30: F: Max N1 + reduc N0 + min N2 | P30: =IF(Makro!E20=1,"-",'Ark2'!M25) -> - | Q30: =IF(Makro!E20=1,"-",'Ark2'!N25) -> - | R30: =IF(Makro!E20=1,"-",'Ark2'!O25) -> -
M31: G: Max N1 + reduc N0 + max N2 | P31: =IF(Makro!E20=1,"-",'Ark2'!M26) -> - | Q31: =IF(Makro!E20=1,"-",'Ark2'!N26) -> - | R31: =IF(Makro!E20=1,"-",'Ark2'!O26) -> -
B32: Lastbredder | E32: Dækfelt 1: B1 = | G32: 4.2 | H32: Dækfelt 2: B2 = | J32: 3.6 | M32: H: Max N1 + max N0 + min N2 | P32: =IF(Makro!E20=1,"-",'Ark2'!M27) -> - | Q32: =IF(Makro!E20=1,"-",'Ark2'!N27) -> - | R32: =IF(Makro!E20=1,"-",'Ark2'!O27) -> -
B33: Lastnedføringsskema | E33: Modul B / 5-12 | H33: Modul B / 5-12 | M33: I : Max N1 + max N0 + max N2 | P33: =IF(Makro!E20=1,"-",'Ark2'!M28) -> - | Q33: =IF(Makro!E20=1,"-",'Ark2'!N28) -> - | R33: =IF(Makro!E20=1,"-",'Ark2'!O28) -> -
B34: Lodrette laste: | E34: nv | F34: no | G34: nh | H34: nv | I34: no | J34: nh | K34: Hovedtilfælde II - b : | M34: A: Min N1 + min N0 + min N2 | P34: =IF(Makro!E20=1,"-",'Ark2'!M29) -> - | Q34: =IF(Makro!E20=1,"-",'Ark2'!N29) -> - | R34: =IF(Makro!E20=1,"-",'Ark2'!O29) -> -
E35: (kN/m) | F35: (kN/m) | G35: (kN/m) | H35: (kN/m) | I35: (kN/m) | J35: (kN/m) | M35: B: Reduc N1 + min N0 + min N2 | P35: =IF(Makro!E20=1,"-",'Ark2'!M30) -> - | Q35: =IF(Makro!E20=1,"-",'Ark2'!N30) -> - | R35: =IF(Makro!E20=1,"-",'Ark2'!O30) -> -
B36: Største maksimalværdier | E36: 78.1 | F36: 311.2 | G36: 55.8 | H36: 78.1 | I36: 307.4 | J36: 55.8 | M36: C: Reduc N1 + reduc N0 + min N2 | P36: =IF(Makro!E20=1,"-",'Ark2'!M31) -> - | Q36: =IF(Makro!E20=1,"-",'Ark2'!N31) -> - | R36: =IF(Makro!E20=1,"-",'Ark2'!O31) -> -
B37: Største reduc. værdier | E37: 78.1 | F37: 282.8 | G37: 55.8 | H37: 78.1 | I37: 282.8 | J37: 55.8 | M37: D: Reduc N1 + reduc N0 + reduc N2 | P37: =IF(Makro!E20=1,"-",'Ark2'!M32) -> - | Q37: =IF(Makro!E20=1,"-",'Ark2'!N32) -> - | R37: =IF(Makro!E20=1,"-",'Ark2'!O32) -> -
B38: Mindste minimalværdier | E38: 13.8 | F38: 147 | G38: 9.9 | H38: 13.8 | I38: 147 | J38: 9.9 | M38: E: Max N1 + min N0 + min N2 | P38: =IF(Makro!E20=1,"-",'Ark2'!M33) -> - | Q38: =IF(Makro!E20=1,"-",'Ark2'!N33) -> - | R38: =IF(Makro!E20=1,"-",'Ark2'!O33) -> - | T38: NB: Resultaterne skal altid kontrolleres af ansvarlig statiker
B39: Tværlaste i hovedtilfælde | F39: I - a | G39: I - b | I39: II - a | J39: II - b | M39: F: Max N1 + reduc N0 + min N2 | P39: =IF(Makro!E20=1,"-",'Ark2'!M34) -> - | Q39: =IF(Makro!E20=1,"-",'Ark2'!N34) -> - | R39: =IF(Makro!E20=1,"-",'Ark2'!O34) -> -
B40: - linielaste på side af søjle | F40: (kN/m) | G40: (kN/m) | I40: (kN/m) | J40: (kN/m) | M40: G: Max N1 + reduc N0 + max N2 | P40: =IF(Makro!E20=1,"-",'Ark2'!M35) -> - | Q40: =IF(Makro!E20=1,"-",'Ark2'!N35) -> - | R40: =IF(Makro!E20=1,"-",'Ark2'!O35) -> -
B41: Maksimal tværlast, wmax | F41: 12 | G41: 12 | M41: H: Max N1 + max N0 + min N2 | P41: =IF(Makro!E20=1,"-",'Ark2'!M36) -> - | Q41: =IF(Makro!E20=1,"-",'Ark2'!N36) -> - | R41: =IF(Makro!E20=1,"-",'Ark2'!O36) -> - | T41: Vejledning: | W41: Betonelementbyggeriers statik
B42: Reduc. tværlast, wreduc | F42: 6 | G42: 6 | M42: I : Max N1 + max N0 + max N2 | P42: =IF(Makro!E20=1,"-",'Ark2'!M37) -> - | Q42: =IF(Makro!E20=1,"-",'Ark2'!N37) -> - | R42: =IF(Makro!E20=1,"-",'Ark2'!O37) -> - | T42: Polyteknisk Forlag 2010 eller www.bef.dk

Sheet Ark2
A1: N1 (kN) | B1: N0 (kN) | C1: N2 (kN) | D1: w | G1: N1 (kN) | H1: N0 (kN) | I1: N2 (kN) | J1: w
A2: ='Ark2'!M2 -> 77.22 | B2: ='Ark2'!N2 -> 1146.6 | C2: ='Ark2'!O2 -> 107.64 | D2: ='Ark1'!$F$41 -> 12 | G2: 77.22 | H2: 1146.6 | I2: 107.64 | J2: 12 | M2: ='Ark1'!G32*'Ark1'!G38+'Ark1'!J32*'Ark1'!J38 -> 77.22 | N2: ='Ark1'!G32*'Ark1'!F38+'Ark1'!J32*'Ark1'!I38 -> 1146.6 | O2: ='Ark1'!G32*'Ark1'!E38+'Ark1'!J32*'Ark1'!H38 -> 107.64
A3: ='Ark2'!M3 -> 435.24 | B3: ='Ark2'!N3 -> 1146.6 | C3: ='Ark2'!O3 -> 107.64 | D3: ='Ark1'!$F$41 -> 12 | G3: 435.24 | H3: 1146.6 | I3: 107.64 | J3: 12 | M3: ='Ark1'!G32*'Ark1'!G37+'Ark1'!J32*'Ark1'!J37 -> 435.24 | N3: ='Ark1'!G32*'Ark1'!F38+'Ark1'!J32*'Ark1'!I38 -> 1146.6 | O3: ='Ark1'!G32*'Ark1'!E38+'Ark1'!J32*'Ark1'!H38 -> 107.64
A4: ='Ark2'!M4 -> 435.24 | B4: ='Ark2'!N4 -> 2205.84 | C4: ='Ark2'!O4 -> 107.64 | D4: ='Ark1'!$F$41 -> 12 | G4: 435.24 | H4: 2205.84 | I4: 107.64 | J4: 12 | M4: ='Ark1'!G32*'Ark1'!G37+'Ark1'!J32*'Ark1'!J37 -> 435.24 | N4: ='Ark1'!G32*'Ark1'!F37+'Ark1'!J32*'Ark1'!I37 -> 2205.84 | O4: ='Ark1'!G32*'Ark1'!E38+'Ark1'!J32*'Ark1'!H38 -> 107.64
A5: ='Ark2'!M5 -> 435.24 | B5: ='Ark2'!N5 -> 2205.84 | C5: ='Ark2'!O5 -> 609.18 | D5: ='Ark1'!$F$41 -> 12 | G5: 435.24 | H5: 2205.84 | I5: 609.18 | J5: 12 | M5: ='Ark1'!G32*'Ark1'!G37+'Ark1'!J32*'Ark1'!J37 -> 435.24 | N5: ='Ark1'!G32*'Ark1'!F37+'Ark1'!J32*'Ark1'!I37 -> 2205.84 | O5: ='Ark1'!G32*'Ark1'!E37+'Ark1'!J32*'Ark1'!H37 -> 609.18
A6: ='Ark2'!M6 -> 435.24 | B6: ='Ark2'!N6 -> 1146.6 | C6: ='Ark2'!O6 -> 107.64 | D6: ='Ark1'!$F$42 -> 6 | G6: 435.24 | H6: 1146.6 | I6: 107.64 | J6: 6 | M6: ='Ark1'!G32*'Ark1'!G36+'Ark1'!J32*'Ark1'!J36 -> 435.24 | N6: ='Ark1'!G32*'Ark1'!F38+'Ark1'!J32*'Ark1'!I38 -> 1146.6 | O6: ='Ark1'!G32*'Ark1'!E38+'Ark1'!J32*'Ark1'!H38 -> 107.64
A7: ='Ark2'!M7 -> 435.24 | B7: ='Ark2'!N7 -> 2205.84 | C7: ='Ark2'!O7 -> 107.64 | D7: ='Ark1'!$F$42 -> 6 | G7: 435.24 | H7: 2205.84 | I7: 107.64 | J7: 6 | M7: ='Ark1'!G32*'Ark1'!G36+'Ark1'!J32*'Ark1'!J36 -> 435.24 | N7: ='Ark1'!G32*'Ark1'!F37+'Ark1'!J32*'Ark1'!I37 -> 2205.84 | O7: ='Ark1'!G32*'Ark1'!E38+'Ark1'!J32*'Ark1'!H38 -> 107.64
A8: ='Ark2'!M8 -> 435.24 | B8: ='Ark2'!N8 -> 2205.84 | C8: ='Ark2'!O8 -> 609.18 | D8: ='Ark1'!$F$42 -> 6 | G8: 435.24 | H8: 2205.84 | I8: 609.18 | J8: 6 | M8: ='Ark1'!G32*'Ark1'!G36+'Ark1'!J32*'Ark1'!J36 -> 435.24 | N8: ='Ark1'!G32*'Ark1'!F37+'Ark1'!J32*'Ark1'!I37 -> 2205.84 | O8: ='Ark1'!G32*'Ark1'!E36+'Ark1'!J32*'Ark1'!H36 -> 609.18
A9: ='Ark2'!M9 -> 435.24 | B9: ='Ark2'!N9 -> 2413.68 | C9: ='Ark2'!O9 -> 107.64 | D9: ='Ark1'!$F$42 -> 6 | G9: 435.24 | H9: 2413.68 | I9: 107.64 | J9: 6 | M9: ='Ark1'!G32*'Ark1'!G36+'Ark1'!J32*'Ark1'!J36 -> 435.24 | N9: ='Ark1'!G32*'Ark1'!F36+'Ark1'!J32*'Ark1'!I36 -> 2413.68 | O9: ='Ark1'!G32*'Ark1'!E38+'Ark1'!J32*'Ark1'!H38 -> 107.64
A10: ='Ark2'!M10 -> 435.24 | B10: ='Ark2'!N10 -> 2413.68 | C10: ='Ark2'!O10 -> 609.18 | D10: ='Ark1'!$F$42 -> 6 | G10: 435.24 | H10: 2413.68 | I10: 609.18 | J10: 6 | M10: ='Ark1'!G32*'Ark1'!G36+'Ark1'!J32*'Ark1'!J36 -> 435.24 | N10: ='Ark1'!G32*'Ark1'!F36+'Ark1'!J32*'Ark1'!I36 -> 2413.68 | O10: ='Ark1'!G32*'Ark1'!E36+'Ark1'!J32*'Ark1'!H36 -> 609.18
A11: ='Ark2'!M11 -> 107.64 | B11: ='Ark2'!N11 -> 1146.6 | C11: ='Ark2'!O11 -> 77.22 | D11: ='Ark1'!$G$41 -> 12 | G11: 107.64 | H11: 1146.6 | I11: 77.22 | J11: 12 | M11: ='Ark1'!G32*'Ark1'!E38+'Ark1'!J32*'Ark1'!H38 -> 107.64 | N11: ='Ark1'!G32*'Ark1'!F38+'Ark1'!J32*'Ark1'!I38 -> 1146.6 | O11: ='Ark1'!G32*'Ark1'!G38+'Ark1'!J32*'Ark1'!J38 -> 77.22
A12: ='Ark2'!M12 -> 609.18 | B12: ='Ark2'!N12 -> 1146.6 | C12: ='Ark2'!O12 -> 77.22 | D12: ='Ark1'!$G$41 -> 12 | G12: 609.18 | H12: 1146.6 | I12: 77.22 | J12: 12 | M12: ='Ark1'!G32*'Ark1'!E37+'Ark1'!J32*'Ark1'!H37 -> 609.18 | N12: ='Ark1'!G32*'Ark1'!F38+'Ark1'!J32*'Ark1'!I38 -> 1146.6 | O12: ='Ark1'!G32*'Ark1'!G38+'Ark1'!J32*'Ark1'!J38 -> 77.22
A13: ='Ark2'!M13 -> 609.18 | B13: ='Ark2'!N13 -> 2205.84 | C13: ='Ark2'!O13 -> 77.22 | D13: ='Ark1'!$G$41 -> 12 | G13: 609.18 | H13: 2205.84 | I13: 77.22 | J13: 12 | M13: ='Ark1'!G32*'Ark1'!E37+'Ark1'!J32*'Ark1'!H37 -> 609.18 | N13: ='Ark1'!G32*'Ark1'!F37+'Ark1'!J32*'Ark1'!I37 -> 2205.84 | O13: ='Ark1'!G32*'Ark1'!G38+'Ark1'!J32*'Ark1'!J38 -> 77.22
A14: ='Ark2'!M14 -> 609.18 | B14: ='Ark2'!N14 -> 2205.84 | C14: ='Ark2'!O14 -> 435.24 | D14: ='Ark1'!$G$41 -> 12 | G14: 609.18 | H14: 2205.84 | I14: 435.24 | J14: 12 | M14: ='Ark1'!G32*'Ark1'!E37+'Ark1'!J32*'Ark1'!H37 -> 609.18 | N14: ='Ark1'!G32*'Ark1'!F37+'Ark1'!J32*'Ark1'!I37 -> 2205.84 | O14: ='Ark1'!G32*'Ark1'!G37+'Ark1'!J32*'Ark1'!J37 -> 435.24
A15: ='Ark2'!M15 -> 609.18 | B15: ='Ark2'!N15 -> 1146.6 | C15: ='Ark2'!O15 -> 77.22 | D15: ='Ark1'!$G$42 -> 6 | G15: 609.18 | H15: 1146.6 | I15: 77.22 | J15: 6 | M15: ='Ark1'!G32*'Ark1'!E36+'Ark1'!J32*'Ark1'!H36 -> 609.18 | N15: ='Ark1'!G32*'Ark1'!F38+'Ark1'!J32*'Ark1'!I38 -> 1146.6 | O15: ='Ark1'!G32*'Ark1'!G38+'Ark1'!J32*'Ark1'!J38 -> 77.22
A16: ='Ark2'!M16 -> 609.18 | B16: ='Ark2'!N16 -> 2205.84 | C16: ='Ark2'!O16 -> 77.22 | D16: ='Ark1'!$G$42 -> 6 | G16: 609.18 | H16: 2205.84 | I16: 77.22 | J16: 6 | M16: ='Ark1'!G32*'Ark1'!E36+'Ark1'!J32*'Ark1'!H36 -> 609.18 | N16: ='Ark1'!G32*'Ark1'!F37+'Ark1'!J32*'Ark1'!I37 -> 2205.84 | O16: ='Ark1'!G32*'Ark1'!G38+'Ark1'!J32*'Ark1'!J38 -> 77.22
A17: ='Ark2'!M17 -> 609.18 | B17: ='Ark2'!N17 -> 2205.84 | C17: ='Ark2'!O17 -> 435.24 | D17: ='Ark1'!$G$42 -> 6 | G17: 609.18 | H17: 2205.84 | I17: 435.24 | J17: 6 | M17: ='Ark1'!G32*'Ark1'!E36+'Ark1'!J32*'Ark1'!H36 -> 609.18 | N17: ='Ark1'!G32*'Ark1'!F37+'Ark1'!J32*'Ark1'!I37 -> 2205.84 | O17: ='Ark1'!G32*'Ark1'!G36+'Ark1'!J32*'Ark1'!J36 -> 435.24
A18: ='Ark2'!M18 -> 609.18 | B18: ='Ark2'!N18 -> 2413.68 | C18: ='Ark2'!O18 -> 77.22 | D18: ='Ark1'!$G$42 -> 6 | G18: 609.18 | H18: 2413.68 | I18: 77.22 | J18: 6 | M18: ='Ark1'!G32*'Ark1'!E36+'Ark1'!J32*'Ark1'!H36 -> 609.18 | N18: ='Ark1'!G32*'Ark1'!F36+'Ark1'!J32*'Ark1'!I36 -> 2413.68 | O18: ='Ark1'!G32*'Ark1'!G38+'Ark1'!J32*'Ark1'!J38 -> 77.22
A19: ='Ark2'!M19 -> 609.18 | B19: ='Ark2'!N19 -> 2413.68 | C19: ='Ark2'!O19 -> 435.24 | D19: ='Ark1'!$G$42 -> 6 | G19: 609.18 | H19: 2413.68 | I19: 435.24 | J19: 6 | M19: ='Ark1'!G32*'Ark1'!E36+'Ark1'!J32*'Ark1'!H36 -> 609.18 | N19: ='Ark1'!G32*'Ark1'!F36+'Ark1'!J32*'Ark1'!I36 -> 2413.68 | O19: ='Ark1'!G32*'Ark1'!G36+'Ark1'!J32*'Ark1'!J36 -> 435.24
A20: ='Ark2'!M20 -> 99.54 | B20: ='Ark2'!N20 -> 1146.6 | C20: ='Ark2'!O20 -> 85.32 | D20: ='Ark1'!$I$41 -> 0 | G20: 99.54 | H20: 1146.6 | I20: 85.32 | J20: 0 | M20: ='Ark1'!G32*('Ark1'!E38+'Ark1'!G38) -> 99.54 | N20: ='Ark1'!G32*'Ark1'!F38+'Ark1'!J32*'Ark1'!I38 -> 1146.6 | O20: ='Ark1'!J32*('Ark1'!H38+'Ark1'!J38) -> 85.32
A21: ='Ark2'!M21 -> 562.38 | B21: ='Ark2'!N21 -> 1146.6 | C21: ='Ark2'!O21 -> 85.32 | D21: ='Ark1'!$I$41 -> 0 | G21: 562.38 | H21: 1146.6 | I21: 85.32 | J21: 0 | M21: ='Ark1'!G32*('Ark1'!E37+'Ark1'!G37) -> 562.38 | N21: ='Ark1'!G32*'Ark1'!F38+'Ark1'!J32*'Ark1'!I38 -> 1146.6 | O21: ='Ark1'!J32*('Ark1'!H38+'Ark1'!J38) -> 85.32
A22: ='Ark2'!M22 -> 562.38 | B22: ='Ark2'!N22 -> 2205.84 | C22: ='Ark2'!O22 -> 85.32 | D22: ='Ark1'!$I$41 -> 0 | G22: 562.38 | H22: 2205.84 | I22: 85.32 | J22: 0 | M22: ='Ark1'!G32*('Ark1'!E37+'Ark1'!G37) -> 562.38 | N22: ='Ark1'!G32*'Ark1'!F37+'Ark1'!J32*'Ark1'!I37 -> 2205.84 | O22: ='Ark1'!J32*('Ark1'!H38+'Ark1'!J38) -> 85.32
A23: ='Ark2'!M23 -> 562.38 | B23: ='Ark2'!N23 -> 2205.84 | C23: ='Ark2'!O23 -> 482.04 | D23: ='Ark1'!$I$41 -> 0 | G23: 562.38 | H23: 2205.84 | I23: 482.04 | J23: 0 | M23: ='Ark1'!G32*('Ark1'!E37+'Ark1'!G37) -> 562.38 | N23: ='Ark1'!G32*'Ark1'!F37+'Ark1'!J32*'Ark1'!I37 -> 2205.84 | O23: ='Ark1'!J32*('Ark1'!H37+'Ark1'!J37) -> 482.04
A24: ='Ark2'!M24 -> 562.38 | B24: ='Ark2'!N24 -> 1146.6 | C24: ='Ark2'!O24 -> 85.32 | D24: ='Ark1'!$I$42 -> 0 | G24: 562.38 | H24: 1146.6 | I24: 85.32 | J24: 0 | M24: ='Ark1'!G32*('Ark1'!E36+'Ark1'!G36) -> 562.38 | N24: ='Ark1'!G32*'Ark1'!F38+'Ark1'!J32*'Ark1'!I38 -> 1146.6 | O24: ='Ark1'!J32*('Ark1'!H38+'Ark1'!J38) -> 85.32
A25: ='Ark2'!M25 -> 562.38 | B25: ='Ark2'!N25 -> 2205.84 | C25: ='Ark2'!O25 -> 85.32 | D25: ='Ark1'!$I$42 -> 0 | G25: 562.38 | H25: 2205.84 | I25: 85.32 | J25: 0 | M25: ='Ark1'!G32*('Ark1'!E36+'Ark1'!G36) -> 562.38 | N25: ='Ark1'!G32*'Ark1'!F37+'Ark1'!J32*'Ark1'!I37 -> 2205.84 | O25: ='Ark1'!J32*('Ark1'!H38+'Ark1'!J38) -> 85.32
A26: ='Ark2'!M26 -> 562.38 | B26: ='Ark2'!N26 -> 2205.84 | C26: ='Ark2'!O26 -> 482.04 | D26: ='Ark1'!$I$42 -> 0 | G26: 562.38 | H26: 2205.84 | I26: 482.04 | J26: 0 | M26: ='Ark1'!G32*('Ark1'!E36+'Ark1'!G36) -> 562.38 | N26: ='Ark1'!G32*'Ark1'!F37+'Ark1'!J32*'Ark1'!I37 -> 2205.84 | O26: ='Ark1'!J32*('Ark1'!H36+'Ark1'!J36) -> 482.04
A27: ='Ark2'!M27 -> 562.38 | B27: ='Ark2'!N27 -> 2413.68 | C27: ='Ark2'!O27 -> 85.32 | D27: ='Ark1'!$I$42 -> 0 | G27: 562.38 | H27: 2413.68 | I27: 85.32 | J27: 0 | M27: ='Ark1'!G32*('Ark1'!E36+'Ark1'!G36) -> 562.38 | N27: ='Ark1'!G32*'Ark1'!F36+'Ark1'!J32*'Ark1'!I36 -> 2413.68 | O27: ='Ark1'!J32*('Ark1'!H38+'Ark1'!J38) -> 85.32
A28: ='Ark2'!M28 -> 562.38 | B28: ='Ark2'!N28 -> 2413.68 | C28: ='Ark2'!O28 -> 482.04 | D28: ='Ark1'!$I$42 -> 0 | G28: 562.38 | H28: 2413.68 | I28: 482.04 | J28: 0 | M28: ='Ark1'!G32*('Ark1'!E36+'Ark1'!G36) -> 562.38 | N28: ='Ark1'!G32*'Ark1'!F36+'Ark1'!J32*'Ark1'!I36 -> 2413.68 | O28: ='Ark1'!J32*('Ark1'!H36+'Ark1'!J36) -> 482.04
A29: ='Ark2'!M29 -> 85.32 | B29: ='Ark2'!N29 -> 1146.6 | C29: ='Ark2'!O29 -> 99.54 | D29: ='Ark1'!$J$41 -> 0 | G29: 85.32 | H29: 1146.6 | I29: 99.54 | J29: 0 | M29: ='Ark1'!J32*('Ark1'!H38+'Ark1'!J38) -> 85.32 | N29: ='Ark1'!J32*'Ark1'!I38+'Ark1'!G32*'Ark1'!F38 -> 1146.6 | O29: ='Ark1'!G32*('Ark1'!E38+'Ark1'!G38) -> 99.54
A30: ='Ark2'!M30 -> 482.04 | B30: ='Ark2'!N30 -> 1146.6 | C30: ='Ark2'!O30 -> 99.54 | D30: ='Ark1'!$J$41 -> 0 | G30: 482.04 | H30: 1146.6 | I30: 99.54 | J30: 0 | M30: ='Ark1'!J32*('Ark1'!H37+'Ark1'!J37) -> 482.04 | N30: ='Ark1'!J32*'Ark1'!I38+'Ark1'!G32*'Ark1'!F38 -> 1146.6 | O30: ='Ark1'!G32*('Ark1'!E38+'Ark1'!G38) -> 99.54
A31: ='Ark2'!M31 -> 482.04 | B31: ='Ark2'!N31 -> 2205.84 | C31: ='Ark2'!O31 -> 99.54 | D31: ='Ark1'!$J$41 -> 0 | G31: 482.04 | H31: 2205.84 | I31: 99.54 | J31: 0 | M31: ='Ark1'!J32*('Ark1'!H37+'Ark1'!J37) -> 482.04 | N31: ='Ark1'!J32*'Ark1'!I37+'Ark1'!G32*'Ark1'!F37 -> 2205.84 | O31: ='Ark1'!G32*('Ark1'!E38+'Ark1'!G38) -> 99.54
A32: ='Ark2'!M32 -> 482.04 | B32: ='Ark2'!N32 -> 2205.84 | C32: ='Ark2'!O32 -> 562.38 | D32: ='Ark1'!$J$41 -> 0 | G32: 482.04 | H32: 2205.84 | I32: 562.38 | J32: 0 | M32: ='Ark1'!J32*('Ark1'!H37+'Ark1'!J37) -> 482.04 | N32: ='Ark1'!J32*'Ark1'!I37+'Ark1'!G32*'Ark1'!F37 -> 2205.84 | O32: ='Ark1'!G32*('Ark1'!E37+'Ark1'!G37) -> 562.38
A33: ='Ark2'!M33 -> 482.04 | B33: ='Ark2'!N33 -> 1146.6 | C33: ='Ark2'!O33 -> 99.54 | D33: ='Ark1'!$J$42 -> 0 | G33: 482.04 | H33: 1146.6 | I33: 99.54 | J33: 0 | M33: ='Ark1'!J32*('Ark1'!H36+'Ark1'!J36) -> 482.04 | N33: ='Ark1'!J32*'Ark1'!I38+'Ark1'!G32*'Ark1'!F38 -> 1146.6 | O33: ='Ark1'!G32*('Ark1'!E38+'Ark1'!G38) -> 99.54
A34: ='Ark2'!M34 -> 482.04 | B34: ='Ark2'!N34 -> 2205.84 | C34: ='Ark2'!O34 -> 99.54 | D34: ='Ark1'!$J$42 -> 0 | G34: 482.04 | H34: 2205.84 | I34: 99.54 | J34: 0 | M34: ='Ark1'!J32*('Ark1'!H36+'Ark1'!J36) -> 482.04 | N34: ='Ark1'!G32*'Ark1'!F37+'Ark1'!J32*'Ark1'!I37 -> 2205.84 | O34: ='Ark1'!G32*('Ark1'!E38+'Ark1'!G38) -> 99.54
A35: ='Ark2'!M35 -> 482.04 | B35: ='Ark2'!N35 -> 2205.84 | C35: ='Ark2'!O35 -> 562.38 | D35: ='Ark1'!$J$42 -> 0 | G35: 482.04 | H35: 2205.84 | I35: 562.38 | J35: 0 | M35: ='Ark1'!J32*('Ark1'!H36+'Ark1'!J36) -> 482.04 | N35: ='Ark1'!G32*'Ark1'!F37+'Ark1'!J32*'Ark1'!I37 -> 2205.84 | O35: ='Ark1'!G32*('Ark1'!E36+'Ark1'!G36) -> 562.38
A36: ='Ark2'!M36 -> 482.04 | B36: ='Ark2'!N36 -> 2413.68 | C36: ='Ark2'!O36 -> 99.54 | D36: ='Ark1'!$J$42 -> 0 | G36: 482.04 | H36: 2413.68 | I36: 99.54 | J36: 0 | M36: ='Ark1'!J32*('Ark1'!H36+'Ark1'!J36) -> 482.04 | N36: ='Ark1'!G32*'Ark1'!F36+'Ark1'!J32*'Ark1'!I36 -> 2413.68 | O36: ='Ark1'!G32*('Ark1'!E38+'Ark1'!G38) -> 99.54
A37: ='Ark2'!M37 -> 482.04 | B37: ='Ark2'!N37 -> 2413.68 | C37: ='Ark2'!O37 -> 562.38 | D37: ='Ark1'!$J$42 -> 0 | G37: 482.04 | H37: 2413.68 | I37: 562.38 | J37: 0 | M37: ='Ark1'!J32*('Ark1'!H36+'Ark1'!J36) -> 482.04 | N37: ='Ark1'!G32*'Ark1'!F36+'Ark1'!J32*'Ark1'!I36 -> 2413.68 | O37: ='Ark1'!G32*('Ark1'!E36+'Ark1'!G36) -> 562.38

Sheet Makro
A20: =IF(E20=1,0,1000000) -> 0 | E20: 1
C25: For ny bruger: Klik på knappen 'angiv nyt brugernavn' for ibrugtagning. | E25: =IF(E20=1,C25,"") -> For ny bruger: Klik på knappen 'angiv nyt brugernavn' for ibrugtagning.
